bitfinex/quotes_ETHUSD_20260304
["timestamp","ask_amount","ask_price","bid_price","bid_amount"]
[1772607781425,5.04590572,1982.6,1981.8,2.364914]
[1772607781426,0.002,1982.6,1981.8,2.364914]
[1772607781630,1.2629749,1982.6,1981.8,2.364914]
[1772607781818,3.53372706,1982.6,1981.8,2.364914]
[1772607782012,0.001,1982.2,1981.8,2.364914]
[1772607782953,0.002,1982.6,1982.1,2.364914]
[1772607783631,3.53373351,1982.6,1982.1,2.364914]
[1772607784219,2.27275216,1982.6,1982.1,2.364914]
[1772607784541,2.27075216,1982.5,1981.9,3.62632981]
[1772607784746,2.27075216,1982.5,1982.0,2.364914]
[1772607785042,2.27075216,1982.4,1982.0,3.62623369]
[1772607789541,2.27075216,1982.4,1982.1,2.364914]
[1772607791325,2.27075216,1982.4,1982.1,2.365914]
[1772607791526,2.27075216,1982.4,1982.1,3.62715342]
[1772607791746,2.27275216,1982.4,1982.1,3.62715342]
[1772607793124,2.27075216,1982.3,1982.0,0.001]
[1772607794865,0.002,1982.4,1982.0,2.365914]
[1772607796227,0.002,1982.4,1982.2,2.364914]
[1772607797456,0.002,1982.6,1982.3,2.364914]
[1772607798453,0.002,1982.6,1982.4,1.26109765]
[1772607799349,0.002,1982.6,1982.4,3.5618569]
[1772607801360,0.002,1982.6,1982.4,2.30075925]
[1772607801560,1.002,1982.9,1982.4,2.30075925]
[1772607801561,3.35786763,1982.9,1982.4,2.71842379]
[1772607801863,1.002,1982.9,1982.4,2.71842379]
[1772607802154,1.002,1982.9,1982.4,2.2091346]
[1772607802460,1.002,1982.9,1982.5,1.26103404]
[1772607802461,3.35786763,1982.9,1982.5,1.26103404]
[1772607802646,3.35786763,1982.9,1982.5,3.47016864]
[1772607803046,2.35586763,1982.8,1982.5,2.2091346]
[1772607804342,2.35586763,1982.8,1982.4,3.47018586]
[1772607805050,2.35586763,1982.8,1982.5,2.2091346]
[1772607805761,2.35586763,1982.8,1982.2,1.2612249]
[1772607805935,2.35586763,1982.7,1982.2,1.2612249]
[1772607806263,2.35586763,1982.7,1982.5,0.001]
[1772607806459,2.35786763,1982.7,1982.5,0.001]
[1772607806662,2.35786763,1982.7,1982.1,1.587]
[1772607806858,2.35786763,1982.7,1982.1,3.7961346]
[1772607807159,2.35586763,1982.5,1982.1,5.05741722]
[1772607807862,2.35586763,1982.5,1982.2,0.001]
[1772607808066,0.002,1982.7,1982.2,2.2101346]
[1772607808255,2.35786763,1982.7,1982.2,2.2101346]
[1772607809241,2.35786763,1982.7,1982.3,1.26116127]
[1772607809636,2.35786763,1982.7,1982.4,2.2091346]
[1772607810855,2.35586763,1982.6,1982.2,2.2101346]
[1772607811157,2.35586763,1982.5,1982.2,0.001]
[1772607813760,2.35586763,1982.4,1982.2,0.001]
[1772607813956,3.61882184,1982.7,1982.2,2.2101346]
[1772607814152,2.35586763,1982.6,1982.2,2.2101346]
[1772607814467,3.61882184,1982.7,1982.2,2.2101346]
[1772607815164,4.21882184,1982.7,1982.2,2.2101346]
[1772607815862,2.35586763,1982.6,1982.2,2.2101346]
[1772607816158,2.35586763,1982.6,1982.2,0.001]
[1772607816562,1.86290713,1982.7,1982.3,2.2091346]
[1772607816739,2.35586763,1982.6,1982.3,2.2091346]
[1772607818263,3.61688711,1982.6,1982.3,2.2091346]
[1772607818863,3.61688711,1982.6,1982.2,0.001]
[1772607819039,1.26101948,1982.6,1982.2,0.001]
[1772607819240,2.35586763,1982.5,1982.3,0.001]
[1772607819442,2.86515682,1982.5,1982.0,0.001]
[1772607819643,2.86515682,1982.5,1982.0,2.2101346]
[1772607819852,2.35586763,1982.5,1982.0,2.2101346]
[1772607820165,2.86515682,1982.5,1982.0,0.001]
[1772607820340,2.35586763,1982.3,1982.0,0.001]
[1772607821454,2.35586763,1982.3,1981.7,2.2091346]
[1772607821656,2.86515682,1982.3,1981.7,2.2091346]
[1772607821971,2.86515682,1982.3,1981.6,2.2101346]
[1772607822170,1.26109765,1982.4,1981.6,2.2101346]
[1772607822171,2.35586763,1982.0,1981.6,2.2101346]
[1772607822419,2.35586763,1981.9,1981.6,2.2101346]
[1772607822949,2.35586763,1981.9,1981.6,0.001]
[1772607823356,2.35586763,1981.9,1981.5,0.001]
[1772607824461,3.61734709,1981.8,1981.5,0.001]
[1772607825969,5.51921985,1982.0,1981.5,2.2101346]
[1772607826277,2.35586763,1981.9,1981.5,2.2101346]
[1772607826873,3.61729159,1981.9,1981.5,2.2101346]
[1772607828574,2.19335213,1981.8,1981.5,0.001]
[1772607829161,3.45487126,1981.8,1981.5,0.001]
[1772607830078,1.902,1982.0,1981.5,0.001]
[1772607830079,3.45475426,1982.0,1981.6,2.27870432]
[1772607830377,2.19335213,1981.9,1981.5,0.001]
[1772607831278,3.45483159,1981.8,1981.5,0.001]
[1772607831857,3.45483159,1981.8,1981.7,0.001]
[1772607834887,2.19335213,1981.7,1981.5,0.001]
[1772607835085,2.19335213,1981.6,1981.5,0.001]
[1772607835474,2.19335213,1981.6,1981.3,0.001]
[1772607836384,2.19335213,1981.5,1981.2,0.002]
[1772607836584,1.906,1981.6,1981.3,0.002]
[1772607836758,3.45493659,1981.7,1981.3,0.002]
[1772607836963,3.45493659,1981.7,1981.2,2.27870432]
[1772607837263,0.6,1981.6,1981.3,2.27870432]
[1772607838168,0.6,1981.6,1981.1,1.26187062]
[1772607838481,2.19335213,1981.5,1981.2,0.002]
[1772607839073,1.26173412,1981.4,1981.2,0.002]
[1772607839273,3.45508625,1981.4,1981.2,0.002]
[1772607839473,2.19335213,1981.3,1981.2,0.002]
[1772607839791,2.19335213,1981.4,1981.2,0.002]
[1772607840488,2.19335213,1981.3,1980.7,0.001]
[1772607840690,2.19335213,1981.0,1980.7,0.001]
[1772607841054,2.19335213,1980.8,1980.7,0.001]
[1772607841895,2.19335213,1980.8,1980.5,0.001]
[1772607842268,2.19335213,1980.8,1980.3,0.001]
[1772607842472,1.27367497,1980.9,1980.3,0.001]
[1772607842473,2.70368552,1980.5,1980.3,0.001]
[1772607842791,1.909,1980.9,1980.3,0.001]
[1772607842792,2.70368552,1980.7,1980.3,0.001]
[1772607843290,3.45547643,1980.8,1980.3,2.27970432]
[1772607843595,2.19335213,1980.7,1980.3,2.27970432]
[1772607844867,2.19335213,1980.7,1980.5,0.001]
[1772607844868,2.70368552,1980.7,1980.5,0.001]
[1772607845068,2.70268552,1980.7,1980.3,0.001]
[1772607845482,1.26224376,1980.6,1980.3,0.001]
[1772607845693,2.19335213,1980.5,1980.3,0.001]
[1772607846378,2.19335213,1980.5,1980.1,0.001]
[1772607846379,2.19335213,1980.3,1980.1,0.001]
[1772607847601,2.70368552,1980.3,1979.8,3.54141392]
[1772607847787,2.19435213,1980.4,1979.9,2.27870432]
[1772607848097,3.45673269,1980.4,1979.9,2.27870432]
[1772607848297,0.001,1980.2,1979.9,2.27870432]
[1772607848895,2.19435213,1980.2,1979.8,1.2627096]
[1772607849302,2.19435213,1980.2,1979.7,3.54248013]
[1772607849980,3.45685566,1980.2,1979.7,3.54248013]
[1772607850183,2.19335213,1980.1,1979.7,0.001]
[1772607850420,0.001,1980.0,1979.7,0.001]
[1772607850596,2.19435213,1980.0,1979.7,1.263812]
[1772607851302,2.19435213,1980.0,1979.5,2.27970432]
[1772607851480,2.19335213,1980.7,1979.6,2.27870432]
[1772607851876,2.19335213,1980.7,1979.8,2.27870432]
[1772607852902,2.19335213,1980.6,1979.8,2.27870432]
[1772607853603,0.6,1980.5,1979.8,2.27870432]
[1772607853777,2.79335213,1980.5,1979.8,2.27870432]
[1772607853977,4.05568053,1980.5,1979.9,3.54139435]
[1772607854705,2.19335213,1980.4,1979.9,3.54139435]
[1772607854905,0.6,1980.5,1980.0,2.27870432]
[1772607855399,3.45547043,1980.8,1980.0,2.27870432]
[1772607855605,2.19335213,1980.7,1980.0,2.27870432]
[1772607856382,2.19335213,1980.7,1980.1,3.54126681]
[1772607856583,2.19335213,1980.9,1980.2,2.27870432]
[1772607857412,0.002,1980.6,1980.2,2.27870432]
[1772607858298,0.002,1980.6,1980.3,1.26243498]
[1772607858802,0.002,1980.6,1980.3,3.43710041]
[1772607860619,0.002,1980.6,1980.3,1.26243498]
[1772607861127,0.002,1980.6,1980.4,2.30916273]
[1772607861410,0.002,1980.9,1980.4,2.30916273]
[1772607861808,2.27918822,1981.3,1980.4,2.30916273]
[1772607862585,2.27918822,1981.3,1980.6,2.30916273]
[1772607864087,2.27918822,1981.2,1980.5,1.26230749]
[1772607864500,2.27918822,1981.2,1980.6,2.30916273]
[1772607864700,2.27918822,1981.4,1980.8,2.30916273]
[1772607865391,2.27918822,1981.6,1980.8,2.30916273]
[1772607866113,2.27918822,1981.5,1980.3,1.26243498]
[1772607866419,2.27918822,1981.5,1980.4,2.30916273]
[1772607866807,2.27918822,1981.3,1980.5,1.26230749]
[1772607868696,2.27918822,1981.3,1980.7,3.57134276]
[1772607869293,2.27918822,1981.2,1980.7,1.26218003]
[1772607870709,2.28118822,1981.2,1980.7,1.26218003]
[1772607871219,0.002,1981.2,1980.8,2.30916273]
[1772607872322,0.002,1981.5,1981.1,2.30916273]
[1772607872521,2.28118822,1981.9,1981.3,2.30916273]
[1772607873215,3.54261062,1981.9,1981.4,1.26173412]
[1772607873407,2.27918822,1981.8,1981.2,1.26182775]
[1772607874396,2.27918822,1981.8,1981.3,2.30916273]
[1772607875102,0.002,1981.9,1981.4,3.57089685]
[1772607875297,0.002,1981.9,1981.4,1.26173412]
[1772607875502,0.002,1981.9,1981.5,2.30916273]
[1772607875805,2.28118822,1981.9,1981.5,2.30916273]
[1772607876009,2.28118822,1981.9,1981.4,1.26173412]
[1772607876823,2.28118822,1981.9,1981.4,3.57089685]
[1772607879704,2.28118822,1981.9,1981.5,2.30916273]
[1772607879911,2.28118822,1981.9,1981.4,1.26173412]
[1772607880217,2.28118822,1981.9,1981.4,3.57089685]
[1772607880603,0.002,1981.9,1981.5,2.30916273]
[1772607881432,0.002,1982.2,1981.7,2.30916273]
[1772607883304,0.002,1982.2,1981.8,1.26147946]
[1772607883505,0.002,1982.2,1981.8,3.57064219]
[1772607884207,2.28118822,1982.1,1981.8,1.26147946]
[1772607884912,0.002,1982.1,1981.8,1.26147946]
[1772607885104,2.28118822,1982.1,1981.5,2.30916273]
[1772607885431,1.26330665,1982.1,1981.4,5.04783183]
[1772607885650,2.27918822,1982.0,1981.4,1.26273412]
[1772607886961,2.27918822,1982.0,1981.4,0.001]
[1772607887613,2.27918822,1981.8,1981.4,0.001]
[1772607889707,2.27918822,1981.8,1981.3,0.001]
[1772607889912,2.27918822,1981.8,1979.8,7.99922082]
[1772607889913,2.29219263,1980.8,1979.8,7.99922082]
[1772607890215,2.29219263,1980.8,1979.9,7.99922082]
[1772607890216,2.29219263,1980.3,1979.9,7.99922082]
[1772607890432,2.29219263,1980.3,1979.6,1.26386487]
[1772607890433,2.29219263,1980.3,1979.7,7.99922082]
[1772607890830,2.29219263,1980.3,1979.8,7.99922082]
[1772607891020,2.29219263,1980.3,1979.6,5.26766478]
[1772607891839,3.00584355,1980.2,1979.6,5.26766478]
[1772607892033,3.00584355,1980.2,1979.7,7.99922082]
[1772607892236,4.70026721,1980.6,1979.6,5.26766478]
[1772607892437,2.29219263,1980.5,1979.6,5.26766478]
[1772607892716,2.89219263,1980.5,1979.6,5.26766478]
[1772607893109,2.89219263,1980.5,1979.6,3.48454385]
[1772607893332,2.29219263,1980.4,1979.7,7.99922082]
[1772607894031,2.29219263,1980.4,1979.8,1.26275381]
[1772607894235,2.29219263,1980.3,1979.8,7.99922082]
[1772607894442,2.29219263,1980.3,1979.6,0.001]
[1772607894751,2.29219263,1980.3,1979.6,8.00022082]
[1772607895322,2.29219263,1979.6,1976.9,2.22067898]
[1772607895517,2.29219263,1978.4,1977.2,1.41]
[1772607895714,2.29219263,1978.3,1977.1,2.22067898]
[1772607895934,2.29219263,1978.3,1976.9,1.2646062]
[1772607895935,2.29219263,1978.1,1976.9,1.2646062]
[1772607896132,2.83185414,1978.3,1977.3,2.22067898]
[1772607896133,2.39972397,1978.3,1977.3,2.22067898]
[1772607896337,3.55573722,1978.6,1977.3,2.22067898]
[1772607896843,2.29219263,1978.5,1977.3,2.22067898]
[1772607898151,2.29219263,1978.5,1976.9,5.0579131]
[1772607898152,1.78312093,1977.9,1976.9,3.48524357]
[1772607898441,2.29219263,1978.3,1977.3,2.22067898]
[1772607898642,1.86364739,1978.4,1977.3,2.22067898]
[1772607899016,0.6,1978.4,1977.3,2.22067898]
[1772607899451,2.89219263,1978.4,1977.3,2.22067898]
[1772607900416,1.26371126,1978.3,1977.4,1.26428643]
[1772607900740,1.26371126,1978.3,1977.3,3.48498534]
[1772607901163,2.29219263,1978.2,1977.3,3.48501718]
[1772607901518,2.29219263,1978.2,1977.3,2.22067898]
[1772607901714,2.29219263,1978.2,1977.3,3.43455132]
[1772607901937,1.86368918,1978.4,1977.4,2.22067898]
[1772607902139,0.6,1978.4,1977.5,2.22067898]
[1772607902351,0.5048061,1978.4,1977.8,2.22067898]
[1772607902521,2.29219263,1978.9,1976.8,0.1555298]
[1772607902729,2.29219263,1977.7,1976.8,1.42017089]
[1772607902920,2.29219263,1977.7,1976.8,1.42018145]
[1772607903849,2.29219263,1977.7,1976.8,1.42017872]
[1772607904623,3.5563512,1977.6,1976.8,0.1555298]
[1772607904925,2.29219263,1977.4,1976.8,0.1555298]
[1772607905945,2.29219263,1977.4,1976.4,1.26487822]
[1772607906949,2.29219263,1977.2,1976.3,3.48562465]
[1772607907149,2.29219263,1977.2,1976.3,1.26494567]
[1772607907349,2.29219263,1977.2,1976.0,8.78992132]
[1772607907350,2.29219263,1977.1,1976.1,7.28109916]
[1772607907750,2.29219263,1977.1,1976.2,2.22067898]
[1772607908844,3.55671576,1977.1,1976.3,1.26499013]
[1772607909751,3.55671576,1977.1,1976.4,0.001]
[1772607910766,5.05768786,1977.2,1976.4,0.001]
[1772607911453,7.34988049,1977.2,1976.4,0.001]
[1772607911642,2.29219263,1977.1,1976.4,0.001]
[1772607911843,2.29219263,1977.1,1976.3,0.001]
[1772607912158,4.07531356,1976.6,1976.1,0.001]
[1772607912340,2.29219263,1976.6,1976.1,0.001]
[1772607912538,1.78312093,1977.0,1976.1,0.001]
[1772607912539,1.28085421,1976.9,1976.1,1.26611474]
[1772607912756,1.2646062,1976.9,1976.1,1.26611474]
[1772607912924,7.35049413,1977.0,1976.1,1.26611474]
[1772607912925,3.55678046,1977.0,1976.1,1.26611474]
[1772607913128,3.55678046,1977.0,1976.2,2.22067898]
[1772607913439,2.29219263,1976.8,1976.1,0.001]
[1772607913634,3.57304684,1976.8,1976.1,0.001]
[1772607913830,2.29219263,1976.8,1976.1,0.001]
[1772607914780,1.26499013,1976.3,1975.5,1.2655024]
[1772607914938,1.26499013,1976.3,1975.6,2.22067898]
[1772607915260,1.26479813,1976.6,1975.6,2.22067898]
[1772607915956,3.55699076,1976.6,1975.6,2.19695758]
[1772607916593,3.57304684,1976.5,1975.6,2.19695758]
[1772607916878,2.29219263,1976.4,1975.6,2.19695758]
[1772607917378,1.26497216,1976.4,1975.7,2.22067898]
[1772607917957,3.57304684,1976.3,1975.3,2.22067898]
[1772607918979,2.29219263,1976.3,1975.3,2.22067898]
[1772607919179,1.26497216,1976.4,1975.6,2.73048766]
[1772607919481,3.991703,1976.5,1975.6,2.73048766]
[1772607920063,1.26479813,1976.6,1975.8,2.81284695]
[1772607921382,1.26479813,1976.6,1975.5,2.54635661]
[1772607921383,1.28085421,1976.9,1975.9,4.12410079]
[1772607921572,2.97452003,1976.8,1975.9,4.12410079]
[1772607921771,1.28085421,1976.7,1975.8,2.85885458]
[1772607921956,0.86283242,1976.8,1975.8,2.85885458]
[1772607922495,0.47199784,1977.0,1975.9,2.85885458]
[1772607922665,2.97900927,1976.9,1975.9,2.85885458]
[1772607922861,0.002,1976.5,1976.1,2.85885458]
[1772607923062,0.47199784,1977.0,1976.1,2.85785458]
[1772607923256,0.002,1976.6,1976.3,2.85785458]
[1772607923870,0.002,1976.6,1976.0,4.12298123]
[1772607924475,0.002,1976.6,1976.1,2.85785458]
[1772607925400,2.99425178,1976.5,1976.1,2.85785458]
[1772607925560,2.99425178,1976.5,1976.2,2.85785458]
[1772607925763,0.002,1976.6,1976.2,2.83650532]
[1772607927078,3.0058678,1976.6,1976.2,2.83650532]
[1772607927285,3.0069529,1976.5,1976.2,2.83650532]
[1772607927511,0.002,1976.6,1976.2,2.83650532]
[1772607927789,0.002,1976.6,1976.3,1.26499013]
[1772607928090,3.00886159,1976.6,1976.3,1.26499013]
[1772607928290,3.00686159,1976.5,1976.3,1.26499013]
[1772607928487,0.002,1976.6,1976.2,4.10153061]
[1772607928990,0.002,1976.8,1976.5,2.84617995]
[1772607929764,0.002,1976.8,1976.6,1.26479813]
[1772607930216,3.61522615,1977.9,1976.7,8.31474258]
[1772607930367,1.26597523,1977.9,1977.0,1.28085421]
[1772607930695,1.26596782,1977.9,1977.1,2.84617995]
[1772607930865,2.32070016,1977.8,1976.8,2.84617995]
[1772607931062,0.47032407,1977.7,1976.8,2.84617995]
[1772607931289,1.85072133,1977.8,1976.8,2.84617995]
[1772607931494,0.47049199,1977.7,1976.8,2.84617995]
[1772607931695,1.26409465,1977.7,1976.9,1.2646062]
[1772607932190,0.47094638,1977.6,1977.0,2.84617995]
[1772607932494,1.26409465,1977.7,1977.3,0.001]
[1772607932684,0.47094638,1977.6,1977.3,0.001]
[1772607932881,1.26409465,1977.7,1977.3,0.001]
[1772607933084,0.47094161,1977.6,1977.3,0.001]
[1772607933285,1.26409465,1977.7,1977.3,0.001]
[1772607933665,2.31149998,1977.6,1976.8,4.11085012]
[1772607933863,1.2642225,1977.5,1976.8,4.11085012]
[1772607934178,1.8355414,1977.5,1976.8,2.84617995]
[1772607934492,1.26420485,1977.6,1976.8,2.84617995]
[1772607934695,0.47088099,1977.5,1976.8,2.84617995]
[1772607934872,3.09968221,1977.7,1976.8,2.82087895]
[1772607935076,0.47093818,1977.6,1976.8,2.82087895]
[1772607935288,0.47093818,1977.5,1976.9,2.83352945]
[1772607935487,3.10168221,1977.7,1976.9,2.83352945]
[1772607935698,0.47085789,1977.6,1976.9,2.81431512]
[1772607935998,1.87061553,1977.3,1976.8,30.0]
[1772607936197,0.47085789,1977.2,1976.8,30.0]
[1772607936384,1.28085421,1977.4,1976.8,13.36455138]
[1772607936385,1.28085421,1977.0,1976.8,13.36455138]
[1772607936587,0.47182297,1976.9,1975.9,3.76329801]
[1772607936771,1.75167718,1976.8,1975.9,3.76329801]
[1772607936972,0.47080392,1976.7,1975.9,3.76329801]
[1772607937299,1.28085421,1976.8,1975.9,3.76329801]
[1772607937502,0.47080957,1976.7,1975.9,3.76329801]
[1772607937700,0.001,1976.9,1975.9,3.76329801]
[1772607937882,1.26473415,1976.7,1976.0,1.26518218]
[1772607938601,0.001,1976.4,1975.9,3.76329801]
[1772607938767,0.001,1976.4,1975.7,0.001]
[1772607938966,0.001,1976.4,1975.7,1.2663377]
[1772607939266,0.001,1976.4,1975.7,5.02963571]
[1772607939468,0.84375753,1976.3,1975.7,0.001]
[1772607939893,1.26505414,1976.2,1975.7,0.001]
[1772607940685,0.001,1976.0,1975.7,0.001]
[1772607941408,3.20305414,1976.2,1975.7,0.001]
[1772607941409,3.20296352,1976.4,1975.8,3.76279801]
[1772607942004,3.20296352,1976.4,1975.9,1.26524621]
[1772607942005,1.938,1976.4,1975.9,1.26524621]
[1772607942389,3.20294403,1976.4,1975.9,1.26524621]
[1772607942589,1.26484258,1976.6,1976.0,3.76279801]
[1772607942792,3.20284258,1976.6,1976.0,3.76279801]
[1772607942983,3.20284258,1976.6,1975.9,1.26524621]
[1772607942984,1.26484258,1976.6,1975.9,3.76279801]
[1772607943594,1.26470629,1976.8,1976.0,3.76279801]
[1772607943790,0.47082657,1976.7,1976.0,3.76279801]
[1772607943982,3.20270629,1976.8,1976.1,1.26511816]
[1772607944301,0.47085516,1976.7,1976.1,1.26511816]
[1772607944500,3.20270629,1976.8,1976.1,1.26511816]
[1772607944703,0.47088113,1976.7,1976.1,1.26511816]
[1772607944883,3.20270629,1976.8,1976.1,1.26511816]
[1772607945085,1.2642225,1977.5,1976.7,3.76279801]
[1772607945286,3.48580812,1977.4,1976.7,3.76279801]
[1772607945607,3.48580812,1977.3,1976.7,3.76279801]
[1772607945908,0.47088113,1977.2,1976.8,4.94099848]
[1772607946117,0.47088113,1977.2,1976.8,3.67633351]
[1772607946285,0.47088113,1977.2,1976.5,3.67633351]
[1772607946486,0.47088113,1977.2,1976.5,4.94119136]
[1772607946487,0.47098361,1977.1,1976.5,4.94119136]
[1772607946787,1.26442783,1977.2,1976.5,4.94119136]
[1772607947011,0.47108374,1977.1,1976.5,4.94119136]
[1772607947190,1.26437351,1977.3,1976.5,6.22204557]
[1772607947379,3.48760649,1977.2,1976.6,3.67633351]
[1772607947586,0.47117971,1977.1,1976.6,3.67633351]
[1772607947783,1.26437351,1977.3,1976.6,3.67633351]
[1772607947983,4.75203943,1977.2,1976.6,4.94107317]
[1772607948179,3.48760649,1977.1,1976.9,0.001]
[1772607948403,0.47117971,1977.0,1976.9,0.001]
[1772607948605,0.47117971,1977.1,1976.9,0.001]
[1772607949411,4.44625756,1977.0,1976.3,31.26498413]
[1772607949615,3.48950018,1976.9,1976.4,0.001]
[1772607949818,0.47117971,1976.8,1976.4,0.001]
[1772607950112,0.95675738,1977.0,1976.4,0.001]
[1772607950113,0.001,1977.0,1976.5,0.001]
[1772607950422,2.40449327,1976.9,1976.5,0.001]
[1772607950582,2.40449327,1976.9,1976.4,3.74689561]
[1772607950583,0.47149327,1976.8,1976.6,0.001]
[1772607950785,0.001,1977.0,1976.6,3.74689561]
[1772607950984,0.47160842,1976.9,1976.7,0.001]
[1772607951223,0.001,1977.0,1976.7,0.001]
[1772607951431,0.47171677,1976.9,1976.6,3.74689561]
[1772607951590,3.19842285,1977.2,1976.6,3.74689561]
[1772607951786,3.49157256,1977.1,1976.6,3.74689561]
[1772607952109,4.75617651,1977.0,1976.4,5.01179669]
[1772607952314,0.47180123,1976.9,1976.4,5.01179669]
[1772607952492,0.47180123,1976.8,1976.4,5.01179669]
[1772607952699,3.19860395,1977.0,1976.4,5.01179669]
[1772607953014,0.47184775,1976.9,1976.4,5.01179669]
[1772607953310,0.47184775,1976.8,1976.4,5.01179669]
[1772607953512,3.19860395,1977.0,1976.4,5.01179669]
[1772607953697,0.47185964,1976.9,1976.4,5.01179669]
[1772607954013,0.47185964,1976.8,1976.4,5.01179669]
[1772607954214,1.26455315,1977.0,1976.4,5.01179669]
[1772607954418,0.47189578,1976.9,1976.4,5.01179669]
[1772607954712,0.47189578,1976.8,1976.4,5.01179669]
[1772607954909,3.19855315,1977.0,1976.4,5.01179669]
[1772607955089,0.47189578,1976.9,1976.4,5.01179669]
[1772607955414,0.47189578,1976.8,1976.4,5.01179669]
[1772607955587,3.19855315,1977.0,1976.4,5.01179669]
[1772607955784,0.376856,1976.9,1976.4,1.26490108]
[1772607956012,1.26440712,1977.3,1976.5,3.74689561]
[1772607956213,3.02124805,1977.2,1976.7,3.74689561]
[1772607956514,3.02124805,1977.1,1976.7,3.74689561]
[1772607956692,3.19735966,1977.3,1976.7,3.74689561]
[1772607956892,3.02138977,1977.2,1976.7,3.74689561]
[1772607958018,3.02138977,1977.2,1976.9,30.0]
[1772607959418,6.21986785,1977.2,1976.9,29.52744356]
[1772607959602,3.02138977,1977.1,1976.9,29.52744356]
[1772607960523,0.89221436,1977.6,1977.0,3.74689561]
[1772607960814,3.2000984,1977.7,1977.1,3.74689561]
[1772607960999,0.002,1977.2,1977.1,3.74689561]
[1772607961194,1.936,1977.7,1977.1,3.74689561]
[1772607961409,0.002,1977.7,1977.2,1.26441432]
[1772607961599,0.002,1977.4,1977.3,3.74689561]
[1772607961796,0.002,1977.7,1977.3,3.74689561]
[1772607964212,0.002,1977.7,1977.3,5.01124188]
[1772607964721,0.002,1977.7,1977.1,5.01132653]
[1772607965016,2.89646207,1977.7,1976.9,34.53893653]
[1772607965409,2.89446207,1977.6,1976.9,30.79202531]
[1772607965792,2.89446207,1977.6,1976.9,29.52744356]
[1772607965992,1.2642225,1977.5,1976.9,30.79203793]
[1772607966722,1.2642225,1977.5,1976.9,29.52744356]
[1772607966921,1.2642225,1977.5,1976.9,30.79204228]
[1772607967215,4.14625954,1977.5,1976.9,29.52744356]
[1772607967417,4.14625954,1977.5,1976.9,26.4440933]
[1772607967418,6.17138764,1977.5,1976.9,26.4440933]
[1772607967816,0.0767941,1977.4,1976.9,26.4440933]
[1772607968202,1.934,1977.3,1976.9,27.70868413]
[1772607968499,1.934,1977.3,1976.9,26.4440933]
[1772607968704,2.0107941,1977.3,1976.9,26.4440933]
[1772607970332,3.2751879,1977.3,1976.9,26.4440933]
[1772607970502,3.1983938,1977.3,1976.9,26.4440933]
[1772607972927,1.2643938,1977.3,1976.9,26.4440933]
[1772607973126,1.935,1977.2,1976.9,26.4440933]
[1772607973735,1.935,1977.2,1977.0,0.001]
[1772607974643,3.19941515,1977.2,1977.0,0.001]
[1772607975728,3.62631093,1977.5,1977.0,4.15031095]
[1772607975729,4.89055272,1977.5,1977.0,4.15031095]
[1772607975934,1.936,1977.3,1977.0,4.15031095]
[1772607976607,3.20037969,1977.3,1977.0,4.15031095]
[1772607977134,10.15415117,1977.6,1977.0,4.15031095]
[1772607977135,1.936,1977.5,1977.0,4.15031095]
[1772607977432,1.936,1977.5,1977.0,5.41484245]
[1772607978646,1.936,1977.5,1977.0,4.15031095]
[1772607979312,1.26428643,1977.4,1977.0,4.15031095]
[1772607979928,3.2002731,1977.5,1977.0,5.41484937]
[1772607980126,3.2002731,1977.5,1977.0,4.15031095]
[1772607980531,3.23390487,1977.5,1977.0,4.15031095]
[1772607982026,1.938,1977.4,1977.1,4.14931095]
[1772607983641,1.938,1977.4,1977.1,5.4137805]
[1772607985745,1.939,1977.4,1977.0,4.15031095]
[1772607987923,3.20534052,1977.4,1977.0,4.15031095]
[1772607988352,3.20530531,1977.4,1977.0,4.15031095]
[1772607988854,3.29473074,1977.4,1977.0,0.001]
[1772607991524,0.07852413,1977.3,1977.0,0.001]
[1772607992034,0.002,1977.4,1977.1,4.14931095]
[1772607992249,2.42543362,1977.5,1977.2,4.14931095]
[1772607992432,1.942,1977.5,1977.2,4.14931095]
[1772607993029,3.2062258,1977.5,1977.2,4.14931095]
[1772607993352,1.942,1977.5,1977.2,4.14931095]
[1772607995370,0.002,1977.5,1977.2,4.14931095]
[1772607996638,1.943,1977.6,1977.2,1.26441408]
[1772607996639,0.002,1977.6,1977.2,1.26441408]
[1772607996843,0.002,1977.8,1977.4,4.14831095]
[1772607997164,0.002,1978.0,1977.6,4.14831095]
[1772607997333,2.42343362,1978.3,1977.6,4.14831095]
[1772607998048,3.68716391,1978.3,1977.6,4.14831095]
[1772607998258,0.04482908,1977.8,1977.4,2.0]
[1772607998557,1.26373029,1978.3,1976.9,0.001]
[1772607998558,1.941,1977.7,1976.9,4.01216193]
[1772607998723,1.941,1977.7,1976.8,11.79168231]
[1772607998724,1.941,1977.7,1977.1,4.01216193]
[1772607998932,3.62631093,1978.1,1977.2,4.01216193]
[1772607998933,2.42001623,1978.1,1977.2,4.01216193]
[1772607999132,3.49768071,1978.0,1977.3,4.01216193]
[1772607999368,3.49768071,1977.9,1977.5,4.01216193]
[1772607999570,3.76610748,1978.3,1977.5,4.01216193]
[1772607999571,0.47266042,1977.8,1977.5,4.01216193]
[1772607999773,1.942,1978.2,1977.7,4.01216193]
[1772607999942,3.49262676,1978.1,1977.7,4.01216193]
[1772608000133,3.49262676,1978.0,1977.7,4.01216193]
[1772608000333,0.46882051,1977.9,1977.8,10.0]
[1772608001854,3.68376188,1978.3,1977.8,14.01216193]
[1772608002053,4.9663611,1978.2,1977.8,4.01216193]
[1772608002359,1.79764764,1978.0,1977.5,4.01216193]
[1772608002537,3.0223611,1977.9,1977.5,4.01216193]
[1772608003560,3.0223611,1977.9,1977.6,14.01216193]
[1772608003760,1.946,1978.1,1977.7,4.01216193]
[1772608004064,1.26383127,1978.2,1977.7,4.01216193]
[1772608004065,3.02167163,1978.0,1977.7,4.01216193]
[1772608004268,3.68373367,1978.3,1977.8,14.01216193]
[1772608004462,4.96747464,1978.2,1977.9,4.01216193]
[1772608004662,3.02147464,1978.1,1977.9,4.01216193]
[1772608005167,3.02147464,1978.1,1977.6,4.01216193]
[1772608005347,4.81608069,1978.1,1977.7,10.0]
[1772608005541,3.02147464,1978.0,1977.6,10.0]
[1772608005944,3.02147464,1978.0,1977.7,14.01216193]
[1772608006268,4.9987219,1978.3,1977.7,4.01216193]
[1772608006574,3.02084351,1978.2,1977.7,14.01216193]
[1772608006758,3.02084351,1978.2,1977.8,14.01216193]
[1772608007071,3.02084351,1978.2,1977.8,4.01216193]
[1772608007768,4.79854928,1978.2,1977.8,10.0]
[1772608007982,4.79854928,1978.1,1977.8,10.0]